fUST/lending_fUST_20240110
["ID","MTS","AMOUNT","RATE_DAILY","PERIOD"]
[311028030,1704874232808,-500.0,0.00027397,2]
[311028031,1704874232818,-500.0,0.00027397,2]
[311028032,1704874232829,-1000.0,0.00027397,4]
[311028033,1704874232839,-500.0,0.00027397,2]
[311028034,1704874232850,-500.0,0.00027397,2]
[311028035,1704874232860,-500.0,0.00027397,2]
[311028036,1704874232870,-500.0,0.00027397,2]
[311028037,1704874232881,-232.3414118,0.00027397,2]
[311028038,1704874232891,-500.0,0.00027397,2]
[311028039,1704874232901,-525.98,0.00027397,2]
[311028040,1704874232911,-929.22,0.00027397,2]
[311028041,1704874232922,-500.0,0.00027397,2]
[311028042,1704874232935,-1100.68,0.00027397,2]
[311028043,1704874232946,-500.0,0.00027397,2]
[311028044,1704874232958,-1112.07,0.00027397,2]
[311028045,1704874232968,-500.0,0.00027397,2]
[311028046,1704874232981,-1858.38425275,0.00027397,2]
[311028048,1704874238100,-158.30593028,0.00020997,2]
[311028049,1704874238110,-2351.34636496,0.00027205,2]
[311028050,1704874238120,-500.0,0.00027397,2]
[311028051,1704874238129,-500.0,0.00027397,2]
[311028052,1704874238138,-500.0,0.00027397,2]
[311028053,1704874238147,-500.0,0.00027397,2]
[311028054,1704874238156,-500.0,0.00027397,2]
[311028055,1704874238164,-503.66651068,0.00027397,2]
[311028056,1704874238174,-500.0,0.00027397,2]
[311028057,1704874238182,-500.0,0.00027397,2]
[311028058,1704874238191,-500.0,0.00027397,2]
[311028059,1704874238200,-500.0,0.00027397,2]
[311028060,1704874238209,-500.0,0.00027397,2]
[311028061,1704874238218,-500.0,0.00027397,2]
[311028062,1704874238227,-502.48980308,0.00027397,2]
[311028063,1704874238236,-500.0,0.00027397,2]
[311028065,1704874238245,-500.0,0.00027397,2]
[311028067,1704874238254,-500.0,0.00027397,2]
[311028068,1704874238263,-500.0,0.00027397,2]
[311028069,1704874238273,-516.03177833,0.00027397,2]
[311028070,1704874238281,-500.0,0.00027397,2]
[311028071,1704874238291,-500.0,0.00027397,2]
[311028072,1704874238300,-500.0,0.00027397,2]
[311028073,1704874238309,-500.0,0.00027397,2]
[311028074,1704874238318,-500.0,0.00027397,2]
[311028075,1704874238327,-501.69216036,0.00027397,2]
[311028076,1704874238336,-500.0,0.00027397,2]
[311028077,1704874238345,-500.0,0.00027397,2]
[311028078,1704874238354,-500.0,0.00027397,2]
[311028079,1704874238364,-500.0,0.00027397,2]
[311028080,1704874238372,-500.0,0.00027397,2]
[311028081,1704874238381,-500.0,0.00027397,2]
[311028082,1704874238390,-1559.91,0.00027397,2]
[311028083,1704874238399,-502.85008081,0.00027397,2]
[311028084,1704874238408,-307.60449464,0.00027397,2]
[311028085,1704874238417,-500.0,0.00027397,2]
[311028086,1704874238427,-500.0,0.00027397,2]
[311028087,1704874238436,-500.0,0.00027397,2]
[311028088,1704874238446,-500.0,0.00027397,2]
[311028089,1704874238454,-196.90125182,0.00027397,5]
[311028090,1704874238464,-501.93651497,0.00027397,2]
[311028091,1704874238473,-500.0,0.00027397,2]
[311028092,1704874238482,-500.0,0.00027397,2]
[311028093,1704874238491,-500.0,0.00027397,2]
[311028094,1704874238500,-536.3838065,0.00027397,2]
[311028095,1704874238509,-500.99470575,0.00027397,2]
[311028096,1704874238518,-2400.37,0.00027397,2]
[311028097,1704874238527,-500.0,0.00027397,2]
[311028098,1704874238536,-500.0,0.00027397,2]
[311028099,1704874238545,-504.41726563,0.00027397,2]
[311028100,1704874238554,-503.0485431,0.00027397,2]
[311028101,1704874238563,-501.62766761,0.00027397,2]
[311028102,1704874238573,-500.0,0.00027397,2]
[311028103,1704874238581,-500.0,0.00027397,2]
[311028104,1704874238590,-500.0,0.00027397,2]
[311028105,1704874238599,-500.0,0.00027397,2]
[311028106,1704874238608,-500.0,0.00027397,2]
[311028107,1704874238617,-500.0,0.00027397,2]
[311028108,1704874238626,-500.0,0.00027397,2]
[311028109,1704874238635,-500.0,0.00027397,2]
[311028110,1704874238643,-500.0,0.00027397,2]
[311028112,1704874238653,-500.0,0.00027397,2]
[311028113,1704874238662,-500.0,0.00027397,2]
[311028115,1704874238671,-502.80033517,0.00027397,2]
[311028116,1704874238680,-500.0,0.00027397,2]
[311028117,1704874238689,-500.0,0.00027397,2]
[311028118,1704874238698,-564.33525738,0.00027397,2]
[311028119,1704874238707,-571.81,0.00027397,2]
[311028120,1704874238716,-500.0,0.00027397,2]
[311028122,1704874238725,-519.03132997,0.00027397,2]
[311028123,1704874238734,-1268.63,0.00027397,2]
[311028124,1704874238743,-500.0,0.00027397,2]
[311028126,1704874238753,-249.06598029,0.00027397,2]
[311028127,1704874238761,-500.0,0.00027397,2]
[311028129,1704874238770,-500.0,0.00027397,2]
[311028130,1704874238779,-600.0,0.00027397,2]
[311028131,1704874238788,-500.0,0.00027397,2]
[311028132,1704874238798,-504.09011111,0.00027397,2]
[311028133,1704874238806,-500.0,0.00027397,2]
[311028134,1704874238815,-501.60375425,0.00027397,2]
[311028135,1704874238824,-1035.59,0.00027397,2]
[311028137,1704874238833,-500.0,0.00027397,2]
[311028138,1704874238842,-503.49423838,0.00027397,2]
[311028140,1704874238851,-165.36565225,0.00027397,2]
[311028141,1704874238860,-500.0,0.00027397,2]
[311028142,1704874238869,-500.0,0.00027397,2]
[311028143,1704874238878,-1000.0,0.00027397,2]
[311028144,1704874238887,-500.0,0.00027397,2]
[311028145,1704874238896,-500.0,0.00027397,2]
[311028146,1704874238905,-500.0,0.00027397,2]
[311028147,1704874238914,-500.0,0.00027397,2]
[311028148,1704874238924,-500.0,0.00027397,2]
[311028149,1704874238933,-500.0,0.00027397,2]
[311028151,1704874238943,-500.0,0.00027397,2]
[311028153,1704874238952,-500.0,0.00027397,2]
[311028155,1704874238961,-500.0,0.00027397,2]
[311028156,1704874238971,-500.0,0.00027397,2]
[311028158,1704874238980,-500.0,0.00027397,2]
[311028160,1704874238988,-500.0,0.00027397,2]
[311028161,1704874238998,-500.0,0.00027397,2]
[311028162,1704874239007,-500.0,0.00027397,2]
[311028163,1704874239016,-1367.67,0.00027397,2]
[311028164,1704874239025,-978.29,0.00027397,2]
[311028165,1704874239035,-777.91,0.00027397,2]
[311028166,1704874239044,-500.0,0.00027397,2]
[311028167,1704874239053,-1066.05,0.00027397,2]
[311028168,1704874239062,-500.0,0.00027397,2]
[311028169,1704874239071,-522.09370799,0.00027397,2]
[311028170,1704874239080,-502.73708819,0.00027397,2]
[311028171,1704874239089,-502.37533265,0.00027397,2]
[311028172,1704874239098,-500.0,0.00027397,2]
[311028173,1704874239107,-500.0,0.00027397,2]
[311028174,1704874239116,-155.0,0.00027397,2]
[311028175,1704874239125,-500.0,0.00027397,2]
[311028176,1704874239134,-500.0,0.00027397,2]
[311028177,1704874239143,-501.38033797,0.00027397,2]
[311028178,1704874239152,-500.0,0.00027397,2]
[311028179,1704874239161,-6312.44,0.00027397,2]
[311028180,1704874239170,-500.0,0.00027397,2]
[311028181,1704874239178,-500.0,0.00027397,2]
[311028182,1704874239187,-684.63,0.00027397,2]
[311028183,1704874239196,-500.0,0.00027397,2]
[311028184,1704874239205,-4895.63,0.00027397,2]
[311028185,1704874239214,-947.02,0.00027397,2]
[311028186,1704874239223,-501.18202632,0.00027397,2]
[311028187,1704874239232,-500.0,0.00027397,2]
[311028188,1704874239241,-502.97512192,0.00027397,2]
[311028189,1704874239251,-5500.46,0.00027397,2]
[311028190,1704874239260,-500.0,0.00027397,2]
[311028191,1704874239269,-500.0,0.00027397,2]
[311028192,1704874239279,-500.0,0.00027397,2]
[311028193,1704874239288,-1450.96,0.00027397,2]
[311028194,1704874239298,-500.0,0.00027397,2]
[311028195,1704874239307,-501.36333868,0.00027397,2]
[311028196,1704874239316,-500.0,0.00027397,2]
[311028197,1704874239325,-500.0,0.00027397,2]
[311028198,1704874239335,-504.9094626,0.00027397,2]
[311028199,1704874239345,-500.0,0.00027397,2]
[311028200,1704874239355,-500.0,0.00027397,2]
[311028201,1704874239364,-500.0,0.00027397,2]
[311028202,1704874239373,-2524.73,0.00027397,2]
[311028203,1704874239383,-4083.87,0.00027397,2]
[311028204,1704874239392,-500.0,0.00027397,2]
[311028205,1704874239401,-515.0953029,0.00027397,2]
[311028206,1704874239410,-501.78053641,0.00027397,2]
[311028207,1704874239420,-500.0,0.00027397,2]
[311028208,1704874239429,-197.20355951,0.00027397,2]
[311028209,1704874239438,-500.0,0.00027397,2]
[311028210,1704874239448,-500.0,0.00027397,2]
[311028211,1704874239457,-500.0,0.00027397,2]
[311028212,1704874239466,-356.23431548,0.00027397,2]
[311028213,1704874239476,-502.0155958,0.00027397,2]
[311028214,1704874239485,-500.0,0.00027397,2]
[311028215,1704874239494,-500.0,0.00027397,2]
[311028216,1704874239504,-294.44703932,0.00027397,2]
[311028217,1704874239513,-503.99026143,0.00027397,2]
[311028218,1704874239522,-500.0,0.00027397,2]
[311028219,1704874239531,-12575.4,0.00027397,2]
[311028220,1704874239541,-502.65996338,0.00027397,2]
[311028221,1704874239551,-500.0,0.00027397,2]
[311028222,1704874239560,-500.0,0.00027397,2]
[311028223,1704874239569,-500.0,0.00027397,2]
[311028224,1704874239578,-500.0,0.00027397,2]
[311028225,1704874239587,-504.43357066,0.00027397,2]
[311028226,1704874239596,-500.0,0.00027397,5]
[311028227,1704874239606,-501.21999366,0.00027397,2]
[311028228,1704874239615,-501.04927739,0.00027397,2]
[311028229,1704874239624,-1501.81,0.00027397,2]
[311028230,1704874239633,-500.0,0.00027397,2]
[311028231,1704874239643,-500.0,0.00027397,2]
[311028232,1704874239652,-500.0,0.00027397,2]
[311028233,1704874239661,-500.0,0.00027397,2]
[311028234,1704874239670,-1495.45,0.00027397,2]
[311028235,1704874239680,-1974.68,0.00027397,2]
[311028236,1704874239689,-500.0,0.00027397,2]
[311028237,1704874239698,-501.00160145,0.00027397,2]
[311028238,1704874239707,-503.00030109,0.00027397,2]
[311028239,1704874239717,-705.34,0.00027397,2]
[311028240,1704874239726,-500.0,0.00027397,2]
[311028241,1704874239735,-500.0,0.00027397,2]
[311028242,1704874239744,-500.0,0.00027397,2]
[311028243,1704874239753,-500.0,0.00027397,2]
[311028244,1704874239761,-591.04,0.00027397,2]
[311028245,1704874239770,-500.0,0.00027397,2]
[311028246,1704874239780,-2146.3,0.00027397,2]
[311028247,1704874239789,-500.0,0.00027397,2]
[311028248,1704874239798,-500.0,0.00027397,2]
[311028249,1704874239806,-500.82557575,0.00027397,2]
[311028250,1704874239815,-34848.33,0.00027397,2]
[311028251,1704874239824,-500.0,0.00027397,2]
[311028252,1704874239833,-500.0,0.00027397,2]
[311028253,1704874239842,-502.72683891,0.00027397,2]
[311028254,1704874239851,-500.77930553,0.00027397,2]
[311028255,1704874239860,-500.0,0.00027397,2]
[311028256,1704874239869,-500.0,0.00027397,2]
[311028257,1704874239878,-504.15046231,0.00027397,2]
[311028258,1704874239887,-500.84985362,0.00027397,2]
[311028259,1704874239896,-501.3942959,0.00027397,2]
[311028260,1704874239907,-500.0,0.00027397,2]
[311028261,1704874239916,-500.0,0.00027397,2]
[311028262,1704874239925,-513.21839484,0.00027397,2]
[311028263,1704874239934,-500.0,0.00027397,2]
[311028264,1704874239945,-500.0,0.00027397,2]
[311028265,1704874239955,-500.0,0.00027397,2]
[311028266,1704874239963,-500.0,0.00027397,2]
[311028267,1704874239972,-500.0,0.00027397,2]
[311028268,1704874239981,-505.0037566,0.00027397,2]
[311028269,1704874239991,-500.0,0.00027397,2]
[311028270,1704874239999,-500.0,0.00027397,2]
[311028271,1704874240008,-471.57877713,0.00027397,2]
[311028272,1704874240018,-503.76502889,0.00027397,2]
[311028273,1704874240030,-500.0,0.00027397,2]
[311028274,1704874240040,-500.0,0.00027397,2]
[311028276,1704874240049,-500.0,0.00027397,2]
[311028278,1704874240058,-500.0,0.00027397,2]
[311028280,1704874240067,-1252.4,0.00027397,2]
[311028282,1704874240075,-500.0,0.00027397,2]
[311028284,1704874240084,-500.0,0.00027397,2]
[311028285,1704874240093,-1008.13,0.00027397,2]
[311028287,1704874240102,-500.0,0.00027397,2]
[311028289,1704874240111,-500.78905607,0.00027397,2]
[311028290,1704874240120,-503.41155253,0.00027397,2]
[311028291,1704874240129,-500.0,0.00027397,2]
[311028292,1704874240139,-500.0,0.00027397,2]
[311028293,1704874240147,-3496.96,0.00027397,2]
[311028295,1704874240156,-502.36265824,0.00027397,2]
[311028296,1704874240166,-500.0,0.00027397,2]
[311028297,1704874240175,-2784.88,0.00027397,2]
[311028298,1704874240184,-500.0,0.00027397,2]
[311028299,1704874240193,-500.0,0.00027397,2]
[311028300,1704874240202,-500.0,0.00027397,2]
[311028301,1704874240212,-501.8170574,0.00027397,2]
[311028302,1704874240221,-500.0,0.00027534,2]
[311028303,1704874240230,-500.0,0.0002767,2]
[311028304,1704874240239,-253.12364064,0.0002767,2]
[311028305,1704874240248,-500.0,0.0002767,4]
[311028306,1704874240258,-500.0,0.0002767,4]
[311028308,1704874240267,-627.35305544,0.0002767,4]
[311028309,1704874240276,-153.53344197,0.0002767,4]
[311028311,1704874240285,-500.0,0.00027671,2]
[311028312,1704874240295,-500.0,0.00027671,2]
[311028313,1704874240303,-500.0,0.00027671,2]
[311028314,1704874240312,-500.0,0.00027671,2]
[311028315,1704874240321,-500.0,0.00027671,2]
[311028317,1704874240330,-500.0,0.00027671,2]
[311028318,1704874240339,-500.0,0.00027671,2]
[311028319,1704874240349,-500.0,0.00027671,2]
[311028320,1704874240359,-525.98,0.00027671,2]
[311028321,1704874240368,-929.22,0.00027671,2]
[311028322,1704874240377,-1100.68,0.00027671,2]
[311028323,1704874240386,-500.0,0.00027671,2]
[311028324,1704874240396,-1112.07,0.00027671,2]
[311028325,1704874240405,-500.0,0.00027671,2]
[311028326,1704874240415,-500.0,0.00027671,2]
[311028327,1704874240424,-500.0,0.00027671,2]
[311028328,1704874240433,-500.0,0.00027671,2]
[311028329,1704874240443,-500.0,0.00027671,2]
[311028330,1704874240452,-500.0,0.00027671,2]
[311028331,1704874240461,-500.0,0.00027671,2]
[311028332,1704874240471,-500.0,0.00027671,2]
[311028333,1704874240480,-500.0,0.00027671,2]
[311028334,1704874240489,-500.0,0.00027671,2]
[311028335,1704874240499,-500.0,0.00027671,2]
[311028336,1704874240508,-500.0,0.00027671,2]
[311028337,1704874240517,-500.0,0.00027671,2]
[311028338,1704874240526,-500.0,0.00027671,2]
[311028339,1704874240536,-500.0,0.00027671,2]
[311028340,1704874240546,-500.0,0.00027671,2]
[311028341,1704874240555,-500.0,0.00027671,2]
[311028342,1704874240565,-500.0,0.00027671,2]
[311028343,1704874240575,-478.04441609,0.00027671,2]
[311028344,1704874240585,-500.0,0.00027671,2]
[311028345,1704874240594,-500.0,0.00027671,2]
[311028346,1704874240604,-500.0,0.00027671,2]
[311028347,1704874240614,-1559.91,0.00027671,2]
[311028348,1704874240624,-500.0,0.00027671,2]
[311028349,1704874240634,-500.0,0.00027671,2]
[311028350,1704874240643,-421.98401203,0.00027671,2]
[311028351,1704874240652,-500.0,0.00027671,2]
[311028352,1704874240662,-2400.37,0.00027671,2]
[311028353,1704874240671,-500.0,0.00027671,2]
[311028354,1704874240680,-500.0,0.00027671,2]
[311028355,1704874240689,-500.0,0.00027671,2]
[311028356,1704874240698,-510.60463476,0.00027671,2]
[311028357,1704874240707,-500.0,0.00027671,2]
[311028358,1704874240716,-500.0,0.00027671,2]
[311028359,1704874240726,-500.0,0.00027671,2]
[311028360,1704874240735,-500.0,0.00027671,2]
[311028361,1704874240744,-500.0,0.00027671,2]
[311028362,1704874240754,-500.0,0.00027671,2]
[311028363,1704874240763,-500.0,0.00027671,2]
[311028364,1704874240772,-571.81,0.00027671,2]
[311028365,1704874240781,-500.0,0.00027671,2]
[311028366,1704874240791,-1268.63,0.00027671,2]
[311028367,1704874240801,-500.0,0.00027671,2]
[311028368,1704874240810,-500.0,0.00027671,2]
[311028369,1704874240819,-500.0,0.00027671,2]
[311028370,1704874240829,-500.0,0.00027671,2]
[311028371,1704874240838,-1035.59,0.00027671,2]
[311028372,1704874240848,-500.0,0.00027671,2]
[311028373,1704874240857,-613.7161458,0.00027671,2]
[311028374,1704874240867,-1000.0,0.00027671,2]
[311028375,1704874240877,-500.0,0.00027671,2]
[311028376,1704874240997,-500.0,0.00027671,2]
[311028377,1704874241007,-500.0,0.00027671,2]
[311028378,1704874241016,-501.18917969,0.00027671,2]
[311028379,1704874241025,-501.07799882,0.00027671,2]
[311028380,1704874241035,-500.0,0.00027671,2]
[311028381,1704874241045,-1367.67,0.00027671,2]
[311028382,1704874241054,-978.29,0.00027671,2]
[311028383,1704874241064,-777.91,0.00027671,2]
[311028384,1704874241074,-500.0,0.00027671,2]
[311028385,1704874241083,-1066.05,0.00027671,2]
[311028386,1704874241093,-500.0,0.00027671,2]
[311028387,1704874241102,-500.0,0.00027671,2]
[311028388,1704874241112,-500.0,0.00027671,2]
[311028389,1704874241121,-330.22912445,0.00027671,2]
[311028390,1704874241130,-500.0,0.00027671,2]
[311028391,1704874241139,-6312.44,0.00027671,2]
[311028392,1704874241149,-500.0,0.00027671,2]
[311028393,1704874241158,-500.0,0.00027671,2]
[311028394,1704874241167,-684.63,0.00027671,2]
[311028395,1704874241177,-500.0,0.00027671,2]
[311028396,1704874241186,-4895.63,0.00027671,2]
[311028397,1704874241195,-947.02,0.00027671,2]
[311028398,1704874241205,-501.95116026,0.00027671,2]
[311028399,1704874241214,-5500.46,0.00027671,2]
[311028400,1704874241224,-504.60900011,0.00027671,2]
[311028401,1704874241233,-500.0,0.00027671,2]
[311028402,1704874241243,-500.0,0.00027671,2]
[311028403,1704874241252,-1450.96,0.00027671,2]
[311028404,1704874241261,-503.4346223,0.00027671,2]
[311028405,1704874241271,-500.0,0.00027671,2]
[311028406,1704874241280,-500.0,0.00027671,2]
[311028407,1704874241290,-500.0,0.00027671,2]
[311028408,1704874241300,-500.0,0.00027671,2]
[311028409,1704874241309,-502.52673231,0.00027671,2]
[311028410,1704874241319,-2524.73,0.00027671,2]
[311028411,1704874241328,-4083.87,0.00027671,2]
[311028412,1704874241338,-500.0,0.00027671,2]
[311028413,1704874241347,-500.0,0.00027671,2]
[311028414,1704874241356,-540.32080062,0.00027671,2]
[311028415,1704874241366,-500.0,0.00027671,2]
[311028416,1704874241375,-500.0,0.00027671,2]
[311028417,1704874241385,-500.0,0.00027671,2]
[311028418,1704874241394,-500.0,0.00027671,2]
[311028419,1704874241403,-12575.4,0.00027671,2]
[311028420,1704874241413,-500.0,0.00027671,2]
[311028421,1704874241422,-500.0,0.00027671,2]
[311028422,1704874241431,-500.0,0.00027671,2]
[311028423,1704874241442,-265.0895561,0.00027671,2]
[311028424,1704874241451,-500.0,0.00027671,5]
[311028425,1704874241461,-1501.81,0.00027671,2]
[311028426,1704874241470,-500.0,0.00027671,2]
[311028427,1704874241479,-500.0,0.00027671,2]
[311028428,1704874241489,-500.0,0.00027671,2]
[311028429,1704874241498,-1495.45,0.00027671,2]
[311028430,1704874241508,-1974.68,0.00027671,2]
[311028431,1704874241517,-500.0,0.00027671,2]
[311028432,1704874241527,-705.34,0.00027671,2]
[311028433,1704874241537,-500.0,0.00027671,2]
[311028434,1704874241547,-500.0,0.00027671,2]
[311028435,1704874241556,-500.0,0.00027671,2]
[311028436,1704874241566,-500.0,0.00027671,2]
[311028437,1704874241574,-591.04,0.00027671,2]
[311028438,1704874241584,-500.0,0.00027671,2]
[311028439,1704874241593,-2146.3,0.00027671,2]
[311028440,1704874241602,-511.12548671,0.00027671,2]
[311028441,1704874241611,-34848.33,0.00027671,2]
[311028442,1704874241620,-500.0,0.00027671,2]
[311028443,1704874241629,-500.0,0.00027671,2]
[311028444,1704874241638,-500.0,0.00027671,2]
[311028445,1704874241647,-500.0,0.00027671,2]
[311028446,1704874241657,-500.0,0.00027671,2]
[311028447,1704874241666,-500.0,0.00027671,2]
[311028448,1704874241675,-500.0,0.00027671,2]
[311028449,1704874241685,-500.0,0.00027671,2]
[311028450,1704874241694,-500.0,0.00027671,2]
[311028451,1704874241703,-500.0,0.00027671,2]
[311028452,1704874241713,-300.0,0.00027671,2]
[311028453,1704874241722,-500.0,0.00027671,2]
[311028454,1704874241732,-500.0,0.00027671,2]
[311028455,1704874241741,-500.0,0.00027671,2]
[311028456,1704874241751,-500.0,0.00027671,2]
[311028457,1704874241760,-1252.4,0.00027671,2]
[311028458,1704874241770,-500.0,0.00027671,2]
[311028459,1704874241779,-500.0,0.00027671,2]
[311028460,1704874241789,-1008.13,0.00027671,2]
[311028461,1704874241798,-207.70129243,0.00027671,2]
[311028462,1704874241808,-503.95177323,0.00027671,2]
[311028463,1704874241817,-3496.96,0.00027671,2]
[311028464,1704874241826,-500.0,0.00027671,2]
[311028465,1704874241836,-2784.88,0.00027671,2]
[311028466,1704874241845,-500.0,0.00027671,2]
[311028467,1704874241854,-184.52416326,0.0002769,2]
[311028468,1704874241863,-500.0,0.00027808,2]
[311028469,1704874241872,-500.0,0.00027945,2]
[311028470,1704874241881,-500.0,0.00027945,2]
[311028471,1704874241891,-500.0,0.00027945,2]
[311028472,1704874241900,-500.0,0.00027945,2]
[311028473,1704874241909,-500.0,0.00027945,2]
[311028474,1704874241918,-525.98,0.00027945,2]
[311028475,1704874241927,-929.22,0.00027945,2]
[311028476,1704874241938,-1100.68,0.00027945,2]
[311028477,1704874241947,-500.0,0.00027945,2]
[311028478,1704874241958,-1112.07,0.00027945,2]
[311028479,1704874241967,-500.0,0.00027945,2]
[311028480,1704874241976,-500.0,0.00027945,2]
[311028481,1704874241985,-500.0,0.00027945,2]
[311028482,1704874241994,-500.0,0.00027945,2]
[311028483,1704874242005,-500.0,0.00027945,2]
[311028484,1704874242014,-500.0,0.00027945,2]
[311028485,1704874242023,-500.0,0.00027945,2]
[311028486,1704874242032,-500.0,0.00027945,2]
[311028487,1704874242043,-500.0,0.00027945,2]
[311028488,1704874242052,-409.79190279,0.00027945,2]
[311028489,1704874242062,-538.9415448,0.00027945,2]
[311028490,1704874242071,-500.0,0.00027945,2]
[311028491,1704874242081,-500.0,0.00027945,2]
[311028492,1704874242090,-500.0,0.00027945,2]
[311028493,1704874242099,-500.0,0.00027945,2]
[311028494,1704874242108,-500.0,0.00027945,2]
[311028495,1704874242117,-1559.91,0.00027945,2]
[311028496,1704874242126,-500.0,0.00027945,2]
[311028497,1704874242135,-500.0,0.00027945,2]
[311028498,1704874242144,-2400.37,0.00027945,2]
[311028499,1704874242153,-500.0,0.00027945,2]
[311028500,1704874242162,-500.0,0.00027945,2]
[311028501,1704874242171,-500.0,0.00027945,2]
[311028502,1704874242179,-500.0,0.00027945,2]
[311028503,1704874242188,-500.0,0.00027945,2]
[311028504,1704874242198,-500.0,0.00027945,2]
[311028505,1704874242207,-500.0,0.00027945,2]
[311028506,1704874242215,-500.0,0.00027945,2]
[311028507,1704874242224,-571.81,0.00027945,2]
[311028508,1704874242234,-500.0,0.00027945,2]
[311028509,1704874242243,-1268.63,0.00027945,2]
[311028510,1704874242252,-500.0,0.00027945,2]
[311028511,1704874242261,-500.0,0.00027945,2]
[311028512,1704874242271,-489.86771307,0.00027945,2]
[311028513,1704874242280,-1035.59,0.00027945,2]
[311028514,1704874242290,-500.0,0.00027945,2]
[311028515,1704874242299,-500.0,0.00027945,2]
[311028516,1704874242308,-500.0,0.00027945,2]
[311028517,1704874242317,-500.0,0.00027945,2]
[311028518,1704874242327,-1367.67,0.00027945,2]
[311028519,1704874242336,-978.29,0.00027945,2]
[311028520,1704874242345,-777.91,0.00027945,2]
[311028521,1704874242355,-500.0,0.00027945,2]
[311028522,1704874242364,-1066.05,0.00027945,2]
[311028523,1704874242373,-500.0,0.00027945,2]
[311028524,1704874242382,-500.0,0.00027945,2]
[311028525,1704874242391,-496.21810783,0.00027945,2]
[311028526,1704874242400,-500.0,0.00027945,2]
[311028527,1704874242409,-6312.44,0.00027945,2]
[311028528,1704874242419,-511.74782297,0.00027945,2]
[311028529,1704874242428,-684.63,0.00027945,2]
[311028531,1704874242437,-500.0,0.00027945,2]
[311028532,1704874242446,-4895.63,0.00027945,2]
[311028533,1704874242456,-947.02,0.00027945,2]
[311028534,1704874242465,-5500.46,0.00027945,2]
[311028535,1704874242474,-500.0,0.00027945,2]
[311028536,1704874242483,-500.0,0.00027945,2]
[311028537,1704874242492,-1450.96,0.00027945,2]
[311028538,1704874242501,-500.0,0.00027945,2]
[311028539,1704874242510,-500.0,0.00027945,2]
[311028540,1704874242520,-500.0,0.00027945,2]
[311028541,1704874242531,-2524.73,0.00027945,2]
[311028542,1704874242542,-4083.87,0.00027945,2]
[311028543,1704874242552,-500.0,0.00027945,2]
[311028544,1704874242562,-500.0,0.00027945,2]
[311028545,1704874242573,-500.0,0.00027945,2]
[311028546,1704874242582,-12575.4,0.00027945,2]
[311028547,1704874242591,-500.0,0.00027945,5]
[311028548,1704874242602,-1501.81,0.00027945,2]
[311028549,1704874242611,-500.0,0.00027945,2]
[311028550,1704874242620,-500.0,0.00027945,2]
[311028551,1704874242629,-1495.45,0.00027945,2]
[311028552,1704874242639,-1974.68,0.00027945,2]
[311028553,1704874242649,-705.34,0.00027945,2]
[311028554,1704874242658,-500.0,0.00027945,2]
[311028555,1704874242668,-591.04,0.00027945,2]
[311028556,1704874242678,-500.0,0.00027945,2]